bitfinex-derivatives/quotes_BTCF0:USTF0_20250915
["timestamp","ask_amount","ask_price","bid_price","bid_amount"]
[1757930879542,0.005,114940.0,114930.0,1.08913906]
[1757930879749,0.008,114940.0,114930.0,1.08913906]
[1757930880049,0.008,114940.0,114930.0,0.54913906]
[1757930880543,0.007,114940.0,114930.0,0.54913906]
[1757930880743,0.007,114940.0,114930.0,1.35353906]
[1757930880950,0.007,114940.0,114930.0,1.93353906]
[1757930881246,0.006,114940.0,114930.0,1.12913906]
[1757930881843,0.006,114940.0,114930.0,1.93349906]
[1757930882047,0.003,114940.0,114930.0,1.93349906]
[1757930882944,0.002,114940.0,114930.0,1.12913906]
[1757930883251,0.002,114940.0,114930.0,0.85907]
[1757930883450,0.002,114940.0,114930.0,1.93317906]
[1757930885153,0.001,114940.0,114930.0,1.93297906]
[1757930886148,0.09200639,114960.0,114950.0,0.02243]
[1757930886349,0.02305,114960.0,114950.0,0.15746453]
[1757930886550,0.03653,114960.0,114950.0,0.15746453]
[1757930887755,0.03853,114960.0,114950.0,0.15746453]
[1757930888053,0.04153,114960.0,114950.0,0.15746453]
[1757930889053,0.05100829,114960.0,114950.0,0.15746453]
[1757930890955,0.11934558,114960.0,114950.0,0.15746453]
[1757930891255,0.05100829,114960.0,114950.0,0.15746453]
[1757930893955,0.04153,114960.0,114950.0,0.15746453]
[1757930894154,0.005,114960.0,114950.0,0.17064453]
[1757930894344,0.005,114960.0,114950.0,0.96064453]
[1757930895153,0.005,114960.0,114950.0,1.09567906]
[1757930895663,0.003,114960.0,114950.0,1.09567906]
[1757930896056,0.002,114960.0,114950.0,1.09567906]
[1757930897257,0.01348,114990.0,114950.0,1.43567906]
[1757930897562,0.17156453,115000.0,114990.0,0.02243]
[1757930897763,0.19339572,115000.0,114990.0,0.02243]
[1757930897959,0.26143124,115000.0,114990.0,0.02243]
[1757930898159,0.11291671,115000.0,114990.0,0.17064453]
[1757930898458,0.06803552,115000.0,114990.0,0.17064453]
[1757930898661,0.02297768,115010.0,114990.0,0.17064453]
[1757930898849,0.04468719,115010.0,114990.0,0.17064453]
[1757930899056,0.02805,115000.0,114990.0,0.17064453]
[1757930899256,0.04976461,115000.0,114990.0,0.17064453]
[1757930899756,0.04976461,115000.0,114990.0,0.03561]
[1757930899961,0.04976461,115000.0,114990.0,0.17064453]
[1757930900962,0.06324461,115000.0,114990.0,0.17064453]
[1757930901564,0.06324069,115000.0,114990.0,0.15746453]
[1757930902462,0.06624069,115000.0,114990.0,0.02243]
[1757930902661,0.06624069,115000.0,114990.0,0.15746453]
[1757930902866,0.13737031,115000.0,114990.0,0.15746453]
[1757930903362,0.13737031,115000.0,114990.0,0.02243]
[1757930903564,0.13737031,115000.0,114990.0,0.15746453]
[1757930905868,0.16868325,115000.0,114990.0,0.15746453]
[1757930906261,0.21565266,115000.0,114990.0,0.15746453]
[1757930906463,0.16868325,115000.0,114990.0,0.15746453]
[1757930908167,0.08407363,115000.0,114990.0,0.17064453]
[1757930908371,0.10799304,115000.0,114990.0,0.17064453]
[1757930908757,0.08375363,115000.0,114990.0,0.17064453]
[1757930910867,0.08375363,115000.0,114990.0,0.30567906]
[1757930910868,0.06102363,115000.0,114990.0,0.30567906]
[1757930911168,0.02971069,115000.0,114990.0,0.30567906]
[1757930914474,0.02971069,115000.0,114990.0,0.87567906]
[1757930915371,0.02971069,115000.0,114990.0,1.68115906]
[1757930916077,0.02971069,115000.0,114990.0,2.25115906]
[1757930917273,0.02971069,115000.0,114990.0,1.44567906]
[1757930917473,0.02971069,115000.0,114990.0,2.25119906]
[1757930917775,0.02971069,115000.0,114990.0,2.25059112]
[1757930919278,0.02971069,115000.0,114990.0,2.00059112]
[1757930920575,0.02971069,115000.0,114990.0,1.19507112]
[1757930920777,0.02971069,115000.0,114990.0,0.74034056]
[1757930920977,0.05244069,115000.0,114990.0,0.84109]
[1757930921181,0.05244069,115000.0,114990.0,0.97582056]
[1757930922275,0.05244069,115000.0,114990.0,1.24242056]
[1757930923381,0.05244069,115000.0,114990.0,1.24210056]
[1757930923682,0.06607069,115000.0,114990.0,1.24202056]
[1757930924178,0.05244069,115000.0,114990.0,1.24202056]
[1757930926581,0.05244069,115000.0,114990.0,0.43694056]
[1757930926780,0.05244069,115000.0,114990.0,1.21486056]
[1757930926983,0.05244069,115000.0,114990.0,1.24210056]
[1757930927484,0.06607069,115000.0,114990.0,0.97550056]
[1757930928783,0.06607069,115000.0,114990.0,0.17034056]
[1757930928984,0.06607069,115000.0,114990.0,0.97566056]
[1757930929885,0.05244069,115000.0,114990.0,0.97566056]
[1757930931781,0.05244069,115000.0,114990.0,0.97510056]
[1757930931782,0.06538069,115000.0,114990.0,0.97510056]
[1757930935182,0.05244069,115000.0,114990.0,0.97510056]
[1757930935382,0.02205069,115000.0,114990.0,1.10983112]
[1757930936882,0.02205069,115000.0,114990.0,0.97510056]
[1757930937079,0.17011125,115000.0,114990.0,0.02243]
[1757930937279,0.42011125,115000.0,114990.0,0.16247]
[1757930937478,0.42011125,115000.0,114990.0,0.29720056]
[1757930938482,0.55484181,115000.0,114990.0,0.02243]
[1757930938684,0.03567,114990.0,114980.0,0.58296893]
[1757930938876,0.17040056,114990.0,114980.0,0.04176893]
[1757930939181,0.4517135,114990.0,114980.0,0.02002893]
[1757930940187,0.4517135,114990.0,114980.0,0.04176893]
[1757930940389,0.4517135,114990.0,114980.0,0.04276893]
[1757930940690,0.4527135,114990.0,114980.0,0.04276893]
[1757930941588,0.42140056,114990.0,114980.0,0.04276893]
[1757930941885,0.4527135,114990.0,114980.0,0.04276893]
[1757930942280,0.28667,114990.0,114980.0,0.04276893]
[1757930942480,0.49004697,114990.0,114980.0,0.04276893]
[1757930943378,0.49004697,114990.0,114980.0,0.17749949]
[1757930947392,0.51164369,114990.0,114980.0,0.17749949]
[1757930951598,0.51164369,114990.0,114980.0,0.001]
[1757930951897,0.64637425,114990.0,114980.0,0.001]
[1757930952094,1.45437425,114990.0,114980.0,0.001]
[1757930953493,0.03567,114970.0,114960.0,0.01985712]
[1757930953689,0.19199408,114970.0,114960.0,0.01985712]
[1757930955198,0.19199408,114970.0,114960.0,0.02085712]
[1757930956293,0.99995408,114970.0,114960.0,0.02085712]
[1757930956498,1.00956828,114970.0,114960.0,0.02085712]
[1757930957798,1.14429884,114970.0,114960.0,0.02085712]
[1757930957993,1.01056828,114970.0,114960.0,0.02085712]
[1757930958186,0.20260828,114970.0,114960.0,0.01985712]
[1757930958402,1.01268828,114970.0,114960.0,0.01985712]
[1757930959093,1.01268828,114970.0,114960.0,0.04159712]
[1757930959290,1.01244828,114970.0,114960.0,0.04159712]
[1757930960691,1.01244828,114970.0,114960.0,0.01985712]
[1757930964395,1.04376122,114970.0,114960.0,0.01985712]
[1757930965897,1.01244828,114970.0,114960.0,0.01985712]
[1757930966903,1.14717884,114970.0,114960.0,0.01985712]
[1757930967298,1.17849178,114970.0,114960.0,0.01985712]
[1757930967606,0.01311,114940.0,114930.0,0.02011098]
[1757930967902,0.01311,114940.0,114930.0,0.29157]
[1757930967903,0.03518,114940.0,114930.0,0.29157]
[1757930968107,0.32651524,114940.0,114930.0,0.02157]
[1757930968606,0.19178468,114940.0,114930.0,0.15630056]
[1757930968805,0.19178468,114940.0,114930.0,0.02157]
[1757930969203,0.19178468,114940.0,114930.0,0.02357]
[1757930970009,0.32651524,114940.0,114930.0,0.02357]
[1757930970196,0.19178468,114940.0,114930.0,0.003]
[1757930970502,0.88995524,114940.0,114930.0,0.003]
[1757930970708,0.92126818,114940.0,114930.0,0.003]
[1757930970899,0.35782818,114940.0,114930.0,0.003]
[1757930971101,1.31295216,114940.0,114930.0,0.002]
[1757930971301,1.49082275,114940.0,114930.0,0.002]
[1757930971502,1.49182275,114940.0,114920.0,0.13473056]
[1757930971702,0.16991056,114930.0,114910.0,0.15527497]
[1757930971908,0.16991056,114920.0,114910.0,0.04211441]
[1757930972209,0.32651524,114920.0,114910.0,0.02054441]
[1757930972513,0.32648296,114920.0,114910.0,0.02054441]
[1757930972807,0.20092036,114920.0,114910.0,0.02054441]
[1757930973000,0.20092036,114920.0,114910.0,0.02254441]
[1757930973804,1.01288036,114920.0,114910.0,0.02254441]
[1757930974195,1.01288036,114920.0,114910.0,0.02354441]
[1757930974809,1.01288036,114920.0,114910.0,0.02254441]
[1757930975405,0.0661898,114920.0,114910.0,0.15830056]
[1757930977010,0.0661898,114920.0,114910.0,0.02357]
[1757930977504,0.0661898,114920.0,114910.0,0.15830056]
[1757930977905,0.0661898,114920.0,114910.0,0.02357]
[1757930978209,0.0661898,114920.0,114910.0,0.15830056]
[1757930979009,0.0661898,114920.0,114910.0,0.02357]
[1757930979208,0.0661898,114920.0,114910.0,0.15830056]
[1757930979805,0.0661898,114920.0,114910.0,0.15854304]
[1757930980009,0.0661898,114920.0,114910.0,0.02357]
[1757930980309,0.0661898,114920.0,114910.0,0.15854304]
[1757930983710,0.20116284,114920.0,114910.0,0.002]
[1757930984206,0.0661898,114920.0,114910.0,0.002]
[1757930984407,0.20116284,114920.0,114910.0,0.02357]
[1757930984710,1.01428284,114920.0,114910.0,0.02357]
[1757930986814,0.8793098,114920.0,114910.0,0.02357]
[1757930987611,1.01428284,114920.0,114910.0,0.02257]
[1757930987815,1.01528284,114920.0,114910.0,0.02257]
[1757930988611,1.01728284,114920.0,114910.0,0.02157]
[1757930989115,0.8823098,114920.0,114910.0,0.02157]
[1757930989314,1.01728284,114920.0,114910.0,0.02157]
[1757930990611,0.8823098,114920.0,114910.0,0.02157]
[1757930990817,1.01728284,114920.0,114910.0,0.02157]
[1757930991021,0.8823098,114920.0,114910.0,0.02157]
[1757930991212,1.01728284,114920.0,114910.0,0.02157]
[1757930992920,0.20416284,114920.0,114910.0,0.02157]
[1757930993110,1.01800284,114920.0,114910.0,0.02157]
[1757930993311,1.04931578,114920.0,114910.0,0.02157]
[1757930993718,0.10050274,114920.0,114910.0,0.02157]
[1757930993924,1.04931578,114920.0,114910.0,0.02157]
[1757930996010,0.91434274,114920.0,114900.0,0.13497304]
[1757930996216,0.03459,114910.0,114900.0,0.15699304]
[1757930996518,0.05643184,114910.0,114900.0,0.15699304]
[1757930997318,0.05643184,114910.0,114900.0,0.02202]
[1757930998112,0.05643184,114910.0,114900.0,0.15699304]
[1757931000214,0.05643184,114910.0,114900.0,0.02202]
[1757931000421,0.05843184,114910.0,114900.0,0.15699304]
[1757931001414,0.05943184,114910.0,114900.0,0.15699304]
[1757931003327,0.05943184,114910.0,114900.0,0.02202]
[1757931003724,0.05943184,114910.0,114900.0,0.15699304]
[1757931004527,0.05943184,114910.0,114900.0,0.16794304]
[1757931004713,0.04659184,114910.0,114900.0,0.16794304]
[1757931005219,0.05943184,114910.0,114900.0,0.16794304]
[1757931005823,0.05943184,114910.0,114900.0,0.02202]
[1757931006025,0.05943184,114910.0,114900.0,0.15699304]
[1757931008028,0.05943184,114910.0,114900.0,0.16794304]
[1757931008629,0.05943184,114910.0,114900.0,0.03297]
[1757931008832,0.05943184,114910.0,114900.0,0.15699304]
[1757931011330,0.04659184,114910.0,114900.0,0.16794304]
[1757931011632,0.04659184,114910.0,114900.0,0.03297]
[1757931011933,0.05943184,114910.0,114900.0,0.15699304]
[1757931014233,0.05943184,114910.0,114900.0,0.02202]
[1757931014432,0.05943184,114910.0,114900.0,0.15699304]
[1757931016438,0.05943184,114910.0,114900.0,0.02202]
[1757931016631,0.05943184,114910.0,114900.0,0.15699304]
[1757931020236,0.05943184,114910.0,114900.0,0.02202]
[1757931020437,0.05943184,114910.0,114900.0,0.15699304]
[1757931021843,0.05943184,114910.0,114900.0,0.02202]
[1757931022138,0.05943184,114910.0,114900.0,0.15699304]
[1757931025648,0.04659184,114910.0,114900.0,0.15699304]
[1757931025942,0.02484184,114910.0,114900.0,0.16794304]
[1757931026338,0.04663184,114910.0,114900.0,0.16794304]
[1757931026733,0.04663184,114910.0,114900.0,0.30291608]
[1757931026933,0.04663184,114910.0,114900.0,0.16794304]
[1757931027143,0.003,114910.0,114900.0,0.81951608]
[1757931027445,0.003,114910.0,114900.0,1.3799329]
[1757931027946,0.003,114910.0,114900.0,1.1133329]
[1757931028244,0.003,114910.0,114900.0,1.3799329]
[1757931028748,0.002,114910.0,114900.0,1.3799329]
[1757931029649,0.002,114910.0,114900.0,1.3809329]
[1757931029839,0.00941858,114930.0,114910.0,0.01293]
[1757931030039,0.02155987,114930.0,114920.0,0.16823304]
[1757931030246,0.10545457,114940.0,114930.0,0.03388]
[1757931030450,0.04334249,114940.0,114930.0,0.03388]
[1757931030646,0.02179,114940.0,114930.0,0.16885304]
[1757931031343,0.04333218,114940.0,114930.0,0.16885304]
[1757931031548,0.02179,114940.0,114930.0,0.16885304]
[1757931031746,0.04333222,114940.0,114930.0,0.16885304]
[1757931031946,0.04633222,114940.0,114930.0,0.16885304]
[1757931032147,0.02479,114940.0,114930.0,0.16885304]
[1757931032544,0.02579,114940.0,114930.0,0.16885304]
[1757931033646,0.02279,114940.0,114930.0,0.03388]
[1757931033851,0.02479,114940.0,114930.0,0.16885304]
[1757931034453,0.02279,114940.0,114930.0,0.16885304]
[1757931034652,0.02379,114940.0,114930.0,0.16885304]
[1757931035353,0.02279,114940.0,114930.0,0.16885304]
[1757931035655,0.001,114940.0,114930.0,0.16885304]
[1757931037148,0.02279,114940.0,114930.0,0.03388]
[1757931037345,0.02279,114940.0,114930.0,0.16885304]
[1757931038353,0.03572,114940.0,114930.0,0.03388]
[1757931038559,0.03572,114940.0,114930.0,0.02293]
[1757931041548,0.28572,114940.0,114930.0,0.02293]
[1757931041750,0.28572,114940.0,114930.0,0.15787236]
[1757931041949,0.42066236,114940.0,114930.0,0.15787236]
[1757931042144,0.55560472,114940.0,114930.0,0.02293]
[1757931042350,0.01293,114930.0,114920.0,0.15787236]
[1757931042554,0.16966236,114930.0,114920.0,0.15787236]
[1757931044657,0.19116035,114930.0,114920.0,0.15787236]
[1757931045156,0.05621799,114930.0,114920.0,0.15887236]
[1757931045353,0.19116035,114930.0,114920.0,0.15887236]
[1757931046056,0.05621799,114930.0,114920.0,0.02293]
[1757931046355,0.19116035,114930.0,114920.0,0.15787236]
[1757931046560,0.05721799,114930.0,114920.0,0.15787236]
[1757931046756,0.19216035,114930.0,114920.0,0.15787236]
[1757931047159,0.05721799,114930.0,114920.0,0.15787236]
[1757931047456,0.05721799,114930.0,114920.0,0.29281472]
[1757931048551,0.05721799,114930.0,114920.0,0.02293]
[1757931048758,0.05721799,114930.0,114920.0,0.29281472]
[1757931052853,0.03572,114930.0,114920.0,0.29281472]
[1757931054664,0.05716274,114930.0,114920.0,0.29281472]
[1757931063771,0.03572,114930.0,114920.0,0.29281472]
[1757931063969,0.05717909,114930.0,114920.0,0.29281472]
[1757931073276,0.05717909,114930.0,114920.0,0.02293]
[1757931073467,0.05717909,114930.0,114920.0,0.29281472]
[1757931076378,0.19212145,114930.0,114920.0,0.29281472]
[1757931076875,0.05717909,114930.0,114920.0,0.29281472]
[1757931077673,0.19212145,114930.0,114920.0,0.29281472]
[1757931078280,0.19212145,114930.0,114920.0,0.15787236]
[1757931078786,0.05717909,114930.0,114920.0,0.15787236]
[1757931078988,0.19212145,114930.0,114920.0,0.15787236]
[1757931080983,0.05717909,114930.0,114920.0,0.15787236]
[1757931081176,0.19212145,114930.0,114920.0,0.15787236]
[1757931083081,0.05717909,114930.0,114920.0,0.15787236]
[1757931083284,0.05717909,114930.0,114920.0,0.29281472]
[1757931084282,0.05717909,114930.0,114920.0,0.15787236]
[1757931086186,0.05716506,114930.0,114920.0,0.15787236]
[1757931087179,0.05716506,114930.0,114920.0,0.02293]
[1757931087379,0.05716506,114930.0,114920.0,0.15787236]
[1757931088283,0.05716506,114930.0,114920.0,0.29281472]
[1757931089287,0.05716506,114930.0,114920.0,0.02293]
[1757931089489,0.05716506,114930.0,114920.0,0.29281472]
[1757931091290,0.05716506,114930.0,114920.0,0.02293]
[1757931091496,0.05716506,114930.0,114920.0,0.29281472]
[1757931092394,0.05716506,114930.0,114920.0,0.02293]
[1757931092596,0.05716506,114930.0,114920.0,0.29281472]
[1757931097590,0.05716506,114930.0,114920.0,0.02293]
[1757931097795,0.05716506,114930.0,114920.0,0.29281472]
[1757931101599,0.05716506,114930.0,114920.0,0.15787236]
[1757931101803,0.05716506,114930.0,114920.0,0.15787953]
[1757931108502,0.05716074,114930.0,114920.0,0.15787953]
[1757931109310,0.05716074,114930.0,114920.0,0.02293]
[1757931109505,0.05716074,114930.0,114920.0,0.15787953]
[1757931109699,0.05716074,114930.0,114920.0,0.02293]
[1757931109903,0.03496,114920.0,114910.0,0.30948637]
[1757931110104,0.05640074,114920.0,114910.0,0.1778359]
[1757931111910,0.05640074,114920.0,114910.0,0.1788359]
[1757931114210,0.05640074,114920.0,114910.0,0.04388637]
[1757931114404,0.44135027,114920.0,114910.0,0.04388637]
[1757931114807,0.44135027,114920.0,114910.0,0.04288637]
[1757931115007,0.30740074,114920.0,114910.0,0.04288637]
[1757931115604,0.30840074,114920.0,114910.0,0.02295]
[1757931115804,0.30940074,114920.0,114910.0,0.02295]
[1757931117807,0.31040074,114920.0,114910.0,0.02295]
[1757931118007,0.31140074,114920.0,114910.0,0.02295]
[1757931121118,0.31159219,114920.0,114910.0,0.02295]
[1757931122718,0.44654172,114920.0,114910.0,0.02295]
[1757931123417,0.31159219,114920.0,114910.0,0.02295]
[1757931123713,0.44654172,114920.0,114910.0,0.02295]
[1757931126217,0.03498,114900.0,114890.0,0.02256]
[1757931127712,0.02121,114900.0,114890.0,0.16783953]
[1757931128015,0.02161134,114900.0,114890.0,0.41783953]
[1757931128321,0.001,114900.0,114890.0,0.41783953]
[1757931128516,0.02221,114900.0,114890.0,0.41783953]
[1757931129524,0.02221,114900.0,114890.0,0.28289]
[1757931129723,0.02221,114900.0,114890.0,0.41783953]
[1757931129724,0.03128313,114900.0,114890.0,0.41783953]
[1757931130422,0.04505313,114900.0,114890.0,0.16783953]
[1757931130924,0.11470671,114900.0,114890.0,0.16783953]
[1757931131624,0.11470671,114900.0,114890.0,0.41783953]
[1757931131625,0.10093671,114900.0,114890.0,0.41783953]
[1757931134526,0.10093671,114900.0,114890.0,0.28289]
[1757931134825,0.10093671,114900.0,114890.0,0.41783953]
[1757931135324,0.10093671,114900.0,114890.0,0.28289]
[1757931135525,0.10093671,114900.0,114890.0,0.41783953]
[1757931137228,0.11470671,114900.0,114890.0,0.15750953]
[1757931139430,0.13654378,114900.0,114890.0,0.15750953]
[1757931145635,0.52149331,114900.0,114890.0,0.02256]
[1757931146039,0.03571,114890.0,114880.0,0.04337413]
[1757931146233,0.05754707,114890.0,114880.0,0.04337413]
[1757931147338,0.05754707,114890.0,114880.0,0.04437413]
[1757931153934,0.05754707,114890.0,114880.0,0.17932366]
[1757931154335,0.05754707,114890.0,114880.0,0.04437413]
[1757931155340,0.05754707,114890.0,114880.0,0.17932366]
[1757931156742,0.03571,114890.0,114880.0,0.15906953]
[1757931158139,0.05754438,114890.0,114880.0,0.15906953]
[1757931158441,0.05754438,114890.0,114880.0,0.02412]
[1757931158641,0.05754438,114890.0,114880.0,0.15906953]
[1757931158836,0.04355438,114890.0,114880.0,0.42001953]
[1757931159142,0.09249671,114900.0,114880.0,0.42001953]
[1757931159444,0.09249671,114900.0,114890.0,0.16839953]
[1757931159445,0.13605437,114900.0,114890.0,0.16839953]
[1757931160245,0.10056437,114900.0,114890.0,0.18906876]
[1757931160747,0.12328437,114900.0,114890.0,0.18906876]
[1757931161749,0.12328437,114900.0,114890.0,0.16839953]
[1757931163748,0.12328437,114900.0,114890.0,0.1684506]
[1757931165342,0.10144671,114900.0,114890.0,0.1684506]
[1757931165947,0.12328668,114900.0,114890.0,0.1684506]
[1757931168953,0.12328668,114900.0,114890.0,0.03345]
[1757931169151,0.12328668,114900.0,114890.0,0.1684506]
[1757931171851,0.09249355,114900.0,114890.0,0.3034512]
[1757931172051,0.07960608,114900.0,114890.0,0.3034512]
[1757931172957,0.10151608,114900.0,114890.0,0.3034512]
[1757931173459,0.10151608,114900.0,114890.0,0.1684506]
[1757931179053,0.10151608,114900.0,114890.0,0.03345]
[1757931179355,0.10151608,114900.0,114890.0,0.3034512]
[1757931180353,0.11492608,114900.0,114890.0,0.02312]
[1757931180561,0.11492608,114900.0,114890.0,0.1581206]
[1757931181258,0.10151608,114900.0,114890.0,0.1684506]
[1757931181447,0.07960608,114900.0,114890.0,0.3034512]
[1757931181947,0.10284608,114900.0,114890.0,0.3034512]
[1757931183359,0.12468648,114900.0,114890.0,0.3034512]
[1757931186663,0.09249398,114900.0,114890.0,0.8684518]
[1757931186860,0.09249398,114900.0,114890.0,1.1334512]
[1757931187061,0.0298004,114900.0,114890.0,1.6220601]
[1757931187361,0.00796,114900.0,114890.0,1.9420601]
[1757931187864,0.06833256,114930.0,114920.0,0.02145]
[1757931188062,0.09019654,114930.0,114920.0,0.2914512]
[1757931188664,0.22519714,114930.0,114920.0,0.2914512]
[1757931188869,0.22519714,114930.0,114920.0,0.1564506]
[1757931189163,0.19409458,114930.0,114920.0,0.1564506]
[1757931189364,0.20300426,114930.0,114920.0,0.1564506]
[1757931189965,0.07000366,114930.0,114920.0,0.2914512]
[1757931190868,0.07300366,114930.0,114920.0,0.2914512]
[1757931191568,0.14291379,114930.0,114920.0,0.2914512]
[1757931191768,0.07297924,114930.0,114920.0,0.2914512]
[1757931192966,0.07297924,114930.0,114920.0,0.02145]
[1757931193169,0.07297924,114930.0,114920.0,0.2914512]
[1757931193562,0.20797984,114930.0,114920.0,0.2914512]
[1757931195769,0.07297924,114930.0,114920.0,0.2914512]
[1757931196366,0.14337993,114930.0,114920.0,0.2914512]
[1757931196568,0.07297924,114930.0,114920.0,0.2914512]
[1757931199268,0.20797984,114930.0,114920.0,0.2914512]
[1757931199468,0.07297924,114930.0,114920.0,0.2914512]
[1757931199659,0.05898924,114930.0,114920.0,0.3024012]
[1757931201172,0.12890292,114930.0,114920.0,0.3024012]
[1757931201470,0.05798924,114930.0,114920.0,0.3024012]
[1757931202062,0.05498924,114930.0,114920.0,0.3024012]
[1757931202266,0.05698924,114930.0,114920.0,0.0324]
[1757931202466,0.05698924,114930.0,114920.0,0.3024012]
[1757931203875,0.07039924,114930.0,114920.0,0.3024012]
[1757931204072,0.20539984,114930.0,114920.0,0.1674006]
[1757931204375,0.20539984,114930.0,114920.0,0.1564506]
[1757931205878,0.274096,114930.0,114920.0,0.1564506]
[1757931208381,0.1390954,114930.0,114920.0,0.1564506]
[1757931208677,0.274096,114930.0,114920.0,0.1564506]
[1757931209583,0.1390954,114930.0,114920.0,0.1564506]
[1757931209791,0.274096,114930.0,114920.0,0.1564506]
[1757931210579,0.1390954,114930.0,114920.0,0.02145]
[1757931210784,0.274096,114930.0,114920.0,0.02145]
[1757931210981,0.1390954,114930.0,114920.0,0.02145]
[1757931211172,0.274096,114930.0,114920.0,0.1564506]
[1757931211678,0.1390954,114930.0,114920.0,0.1564506]
[1757931211982,0.274096,114930.0,114920.0,0.1564506]
[1757931216285,0.274096,114930.0,114920.0,0.02145]
[1757931216488,0.274096,114930.0,114920.0,0.1564506]
[1757931222979,0.03562,114920.0,114910.0,0.02139]
[1757931223183,0.03562,114920.0,114900.0,0.30838083]
[1757931223184,0.03562,114910.0,114900.0,0.30838083]
[1757931223390,0.05745956,114910.0,114900.0,0.57838203]
[1757931224791,0.05745956,114910.0,114900.0,0.31178203]
[1757931225192,0.05745956,114910.0,114900.0,0.04278083]
[1757931225394,0.19246016,114910.0,114900.0,0.17778143]
[1757931225892,0.05745956,114910.0,114900.0,0.04278083]
[1757931226091,0.44246338,114910.0,114900.0,0.001]
[1757931226389,1.24710338,114910.0,114900.0,0.001]
[1757931226585,1.27820594,114910.0,114900.0,0.001]
[1757931227188,1.24710338,114910.0,114900.0,0.001]
[1757931227494,1.24710338,114910.0,114900.0,0.002]
[1757931228294,1.24910338,114910.0,114880.0,0.42158478]
[1757931228495,0.0345,114890.0,114880.0,0.17688478]
[1757931228695,0.05633956,114890.0,114880.0,0.17688478]
[1757931229289,0.12555377,114890.0,114880.0,0.17688478]
[1757931230495,0.12555377,114890.0,114880.0,0.17788478]
[1757931231295,0.12555377,114890.0,114880.0,0.17888478]
[1757931231995,0.12555377,114890.0,114880.0,0.17788478]
[1757931232196,0.12555377,114890.0,114880.0,0.17888478]
[1757931232897,0.12555377,114890.0,114880.0,0.18921478]
[1757931233098,0.11209377,114890.0,114880.0,0.18921478]
[1757931233287,0.09025421,114890.0,114880.0,0.18921478]
[1757931235997,0.11191489,114890.0,114880.0,0.18921478]
[1757931241698,0.11268489,114890.0,114880.0,0.18921478]
[1757931243505,0.06921421,114890.0,114880.0,0.43921478]
[1757931243702,0.01359,114910.0,114880.0,0.43921478]
[1757931243907,0.04347581,114910.0,114900.0,0.16787382]
[1757931245411,0.05683581,114910.0,114900.0,0.16787382]
[1757931246113,0.05883581,114910.0,114900.0,0.15692382]
[1757931246913,0.05883581,114910.0,114900.0,0.02192]
[1757931247115,0.05883581,114910.0,114900.0,0.15692382]
[1757931247717,0.05983581,114910.0,114900.0,0.15692382]
[1757931247921,0.05983581,114910.0,114900.0,0.02192]
[1757931248520,0.19483963,114910.0,114900.0,0.02192]
[1757931248821,0.44483963,114910.0,114900.0,0.02192]
[1757931251123,0.30983581,114910.0,114900.0,0.02192]
[1757931251325,0.44483963,114910.0,114900.0,0.02192]
[1757931254220,0.30983581,114910.0,114900.0,0.02192]
[1757931254430,0.44483963,114910.0,114900.0,0.02192]
[1757931255226,0.05983581,114910.0,114900.0,0.15692382]
[1757931256531,0.05983581,114910.0,114900.0,0.02192]
[1757931261329,0.19483963,114910.0,114900.0,0.02192]
[1757931262035,0.05983581,114910.0,114900.0,0.02192]
[1757931263835,0.05983581,114910.0,114900.0,0.15692382]
[1757931265032,0.05983581,114910.0,114900.0,0.02192]
[1757931265239,0.05983581,114910.0,114900.0,0.15692382]
[1757931269842,0.05983581,114910.0,114900.0,0.02192]
[1757931270041,0.05983581,114910.0,114900.0,0.15692382]
[1757931270530,0.05983581,114910.0,114900.0,0.02192]
[1757931270741,0.05983581,114910.0,114900.0,0.15692382]
[1757931273143,0.05983581,114910.0,114900.0,0.02192]
[1757931273343,0.05983581,114910.0,114900.0,0.15692382]
[1757931276147,0.09093837,114910.0,114900.0,0.15692382]
[1757931282048,0.09093837,114910.0,114900.0,0.02192]
[1757931282449,0.09789837,114910.0,114900.0,0.15692382]
[1757931285450,0.09789837,114910.0,114900.0,0.02192]
[1757931285649,0.09789837,114910.0,114900.0,0.15692382]
[1757931286048,0.06679581,114910.0,114900.0,0.15692382]
[1757931287750,0.06679581,114910.0,114900.0,0.29192512]
[1757931289957,0.05343581,114910.0,114900.0,0.30287512]
[1757931290154,0.03162581,114910.0,114900.0,0.55287512]
[1757931290656,0.05331581,114910.0,114900.0,0.55287512]
[1757931293455,0.05331581,114910.0,114900.0,0.28287]
[1757931293657,0.05331581,114910.0,114900.0,0.55287512]
[1757931298456,0.06681581,114910.0,114900.0,0.28287]
[1757931298658,0.06681581,114910.0,114900.0,0.55287512]
[1757931298857,0.05331581,114910.0,114900.0,0.55287512]
[1757931299057,0.05331581,114910.0,114900.0,0.28287]
[1757931299258,0.05331581,114910.0,114900.0,0.55287512]
[1757931302965,0.06681581,114910.0,114900.0,0.55287512]
[1757931303961,0.05331581,114910.0,114900.0,0.55287512]
[1757931306870,0.05331581,114910.0,114900.0,0.28287]
[1757931307069,0.06681581,114910.0,114900.0,0.55287512]
[1757931310767,0.06681581,114910.0,114900.0,0.28287]
[1757931310968,0.06681581,114910.0,114900.0,0.55287512]
[1757931313286,0.06681581,114910.0,114900.0,0.29192512]
[1757931313882,0.06681581,114910.0,114900.0,0.02192]
[1757931314083,0.06681581,114910.0,114900.0,0.29192512]
[1757931317178,0.06681581,114910.0,114900.0,0.30287512]
[1757931317386,0.03162581,114910.0,114900.0,0.03287]
[1757931317582,0.03162581,114910.0,114900.0,0.30287512]
[1757931317885,0.05403581,114910.0,114900.0,0.30287512]
[1757931320390,0.03162581,114910.0,114900.0,0.43787768]
[1757931320989,0.03162581,114910.0,114900.0,0.97787768]
[1757931321791,0.03162581,114910.0,114900.0,1.22787768]
[1757931322087,0.02962581,114910.0,114900.0,1.22787768]
[1757931322288,0.00796,114910.0,114900.0,0.82287]
[1757931322490,0.00696,114910.0,114900.0,1.22787768]
[1757931324084,0.00696,114910.0,114900.0,1.22887768]
[1757931324791,0.00696,114910.0,114900.0,1.22987768]
[1757931325590,0.00696,114910.0,114900.0,2.03115768]
[1757931326385,0.02879275,114910.0,114900.0,2.03115768]
[1757931327887,0.02879275,114910.0,114900.0,2.03983682]
[1757931328589,0.02879275,114910.0,114900.0,2.30643682]
[1757931329493,0.02879275,114910.0,114900.0,1.90142914]
[1757931329690,0.02879275,114910.0,114900.0,2.30643682]
[1757931330585,0.06869616,114930.0,114900.0,2.72343752]
[1757931330794,0.0912564,114950.0,114920.0,0.42706768]
[1757931331085,0.1131864,114950.0,114940.0,0.29206512]
[1757931331291,0.1131864,114950.0,114940.0,0.02206]
[1757931331496,0.06653256,114950.0,114940.0,0.29206512]
[1757931332195,0.13887239,114950.0,114940.0,0.29206512]
[1757931332787,0.13687239,114950.0,114940.0,0.29206512]